Cogmind - Beta 13 @@@ ROGUE MODE // 2024.03.22 @ 14:22:45 Player: most_lamentable Result: Destroyed by G-47 Trooper with Particle Gun Performance ------------- Evolutions (2) 1000 Regions Visited (3) 600 Robots Destroyed (37) 185 Value Destroyed (1409) 1409 Prototype IDs (0) 0 Alien Tech Used (0) 0 Bonus (67) 67 TOTAL SCORE: 3261 Bonus ------- High Alert Combat Kills 67 Cogmind --------- Core Integrity 0/550 Matter 5/300 Energy 90/100 System Corruption 0% Temperature Cool (9) Movement Walking (112) Location -8/Materials Parts ------- > --- POWER (2) -------- (None) > --- PROPULSION (4) --- Aluminum Leg Aluminum Leg Aluminum Leg VSS Leg > --- UTILITY (3) ------ Large Storage Unit > --- WEAPON (2) ------- Heavy Missile Launcher > --- INVENTORY (15) --- Aluminum Leg Compact Wheel Improved Heat Sink Small Storage Unit Advanced Visual Processing Unit Energy Filter Light Armor Plating Minigun Heavy Missile Launcher Datajack Welding Torch Peak State ------------ > --- POWER ------------ Nuclear Core Light Nuclear Core > --- PROPULSION ------- Advanced Treads Advanced Treads Advanced Treads Advanced Treads > --- UTILITY ---------- Large Storage Unit High-capacity Battery Energy Filter > --- WEAPON ----------- Lightning Gun Lightning Gun > --- INVENTORY -------- Aluminum Leg Aluminum Leg Aluminum Leg Aluminum Leg Compact Wheel Improved Heat Sink Small Storage Unit Energy Filter Light Armor Plating Minigun Minigun Heavy Missile Launcher Heavy Missile Launcher Datajack Welding Torch [Rating: 35] Favorites ----------- Power Ion Engine Engine Ion Engine Power Core Light Nuclear Core Propulsion Aluminum Leg Treads Advanced Treads Leg Aluminum Leg Utility Small Storage Unit Device Energy Filter Storage Small Storage Unit Protection Hardened Light Armor Plating Weapon Light Assault Rifle Energy Gun EM Pulse Gun Energy Cannon Beam Cannon Ballistic Gun Light Assault Rifle Launcher Heavy Missile Launcher Impact Weapon Heavy Hammer Build | -11 -10 -9 -8 ------- Run | Yrd Mat Mat Mat Slots Evolved 4 | . . 2 2 Power 1 | . . . 1 Propulsion 2 | . . 2 . Utility 1 | . . . 1 Weapon . | . . . . Parts Attached 56 | 4 7 9 36 Power 5 | 1 . 1 3 Engine 2 | 1 . 1 . Core 3 | . . . 3 Reactor . | . . . . Propulsion 30 | 2 4 5 19 Treads 15 | . 2 2 11 Leg 15 | 2 2 3 8 Wheel . | . . . . Hover . | . . . . Flight . | . . . . Utility 7 | 1 1 1 4 Device 2 | . . . 2 Storage 4 | 1 1 . 2 Processor . | . . . . Hackware . | . . . . Protection 1 | . . 1 . Artifact . | . . . . Weapon 14 | . 2 2 10 Energy Gun 5 | . 1 1 3 Energy Cannon 1 | . . . 1 Ballistic Gun 6 | . 1 1 4 Ballistic Cannon . | . . . . Launcher 1 | . . . 1 Special Weapon . | . . . . Impact Weapon 1 | . . . 1 Slashing Weapon . | . . . . Piercing Weapon . | . . . . Special Melee Weapon . | . . . . Unidentified Prototypes . | . . . . Parts Lost 19 | . . 1 18 Power 4 | . . . 4 Propulsion 8 | . . . 8 Utility 3 | . . . 3 Weapon 4 | . . 1 3 Highest Loss Streak 11 | . . 1 11 To Critical Strikes 1 | . . . 1 Average Slot Usage (%) 90 | . 87 100 85 Engine 7 | . 14 11 3 Core 5 | . . . 10 Treads 16 | . 4 14 20 Leg 18 | . 23 29 12 Storage 15 | . 16 11 17 Protection 4 | . . 10 3 Energy Gun 7 | . 14 12 3 Energy Cannon 1 | . . . 1 Ballistic Gun 9 | . 14 9 7 Impact Weapon 2 | . . . 3 Naked Turns . | . . . . Heaviest Build 47 | 10 17 19 47 Greatest Support 88 | 20 40 40 88 Greatest Overweight (x) 3 | . . . 3 Average Overweight (x) . | . . . . Largest Inventory Capacity 15 | 8 8 8 15 Average Capacity 11 | 7 8 8 14 Most Carried 15 | 8 8 8 15 Average Carried 10 | 5 6 7 13 Final Capacity 15 | 8 8 8 15 Final Carried 11 | 8 8 8 11 Class Distribution -------------------- 90% | Mutant 9% | Scavenger-Mutant Dominant Class ---------------- Mutant | -10/Materials Mutant | -9/Materials Mutant | -8/Materials Resources | -11 -10 -9 -8 ----------- Run | Yrd Mat Mat Mat Matter Collected 696 | 231 83 112 270 Remotely . | . . . . Salvage Created 1506 | . 104 339 1063 Parts 72 | . 3 26 43 Haulers Intercepted 1 | . . . 1 Recyclers Shooed . | . . . . Parts Field Recycled . | . . . . Retrieved Matter . | . . . . Parts Self-Destructed . | . . . . Prevented . | . . . . Kills | -11 -10 -9 -8 ------- Run | Yrd Mat Mat Mat Combat Hostiles Destroyed 32 | . 2 9 21 Melee 3 | . . . 3 Guns 16 | . 2 9 5 Cannons 3 | . . . 3 AOE 5 | . . . 5 Classes Destroyed 8 | . 1 2 5 Worker 3 | . . . 3 Hauler 1 | . . . 1 Watcher 1 | . . . 1 Swarmer 4 | . . 4 . Grunt 21 | . 2 3 16 Sentry 4 | . . 2 2 Specialist 2 | . . . 2 Heavy 1 | . . . 1 Best Kill Streak 8 | . 2 4 8 Combat Bots Only 4 | . 2 4 4 Max Kills in Single Turn 2 | . 1 1 2 Gunslinging . | . . . . Exploded 1 | . . . 1 Melee 1 | . . . 1 Uniques/NPCs Destroyed . | . . . . Combat | -11 -10 -9 -8 -------- Run | Yrd Mat Mat Mat Hostile Shots Fired 306 | . 20 30 256 Missed 64 | . 2 4 58 Damage Taken 3800 | . 252 315 3233 Core 679 | . 85 32 562 Absorbed by Shields . | . . . . Core Remaining (%) 86 | 100 66 92 . Volleys Fired 110 | . 14 19 77 Largest 2 | . 2 2 2 Hottest 110 | . 60 90 110 Shots Fired 164 | . 28 37 99 Gun 133 | . 28 37 68 Cannon 19 | . . . 19 Launcher 12 | . . . 12 Special . | . . . . Kinetic 59 | . 14 12 33 Thermal 44 | . . 10 34 Explosive 12 | . . . 12 Electromagnetic 49 | . 14 15 20 Robot Hit Streak 13 | . 5 5 13 Robot Miss Streak 3 | . 2 3 3 Penetration Max . | . . . . Secondary Targets . | . . . . Shots Hit Robots 131 | . 17 24 90 Core Hits 65 | . 6 16 43 Critical Kills 1 | . . . 1 Critical Parts Destroyed 6 | . . . 6 Critical Strikes 9 | . . . 9 Burn 2 | . . . 2 Smash 7 | . . . 7 Melee Attacks 27 | . . . 27 Impact 27 | . . . 27 Slashing . | . . . . Piercing . | . . . . Sneak Attacks . | . . . . Combat Hostiles . | . . . . Follow-up Attacks . | . . . . Damage Inflicted 3265 | . 181 255 2829 Guns 1145 | . 181 255 709 Cannons 230 | . . . 230 Explosions 1218 | . . . 1218 Melee 672 | . . . 672 Ramming . | . . . . Kinetic 442 | . 65 66 311 Thermal 489 | . . 98 391 Explosive 1183 | . . . 1183 Electromagnetic 479 | . 116 91 272 Impact 672 | . . . 672 Slashing . | . . . . Piercing . | . . . . Highest Corruption 2 | . 2 2 . Average Corruption 2 | . 2 2 . Corruption Purged . | . . . . Corruption Blocked . | . . . . Effects 3 | . 1 2 . Message Errors 3 | . 1 2 . Overload Shots . | . . . . Overflow Damage 238 | . . . 238 Projectiles . | . . . . Explosions 49 | . . . 49 Melee 189 | . . . 189 Knockbacks 4 | . . . 4 Impact 4 | . . . 4 Kinetic . | . . . . Secondary . | . . . . Self-Inflicted Damage 110 | . . . 110 Shots 6 | . . . 6 Rammed . | . . . . Targets Rammed . | . . . . Kicked . | . . . . Crushed . | . . . . Highest Temperature 547 | . 197 315 547 Average Temperature 155 | . 107 101 185 Received Heat Transfer 1323 | . 147 105 1071 Effects 22 | . . 1 21 Shutdowns 8 | . . 1 7 Energy Bleed 2 | . . . 2 Interference 4 | . . . 4 Matter Decay 1 | . . . 1 Short Circuit 2 | . . . 2 Damage (minor) 2 | . . . 2 Damage (major) 3 | . . . 3 Siege Activations . | . . . . Robots Corrupted . | . . . . Combat Hostiles . | . . . . Parts Fried 4 | . . . 4 Impact Corruptions 9 | . . . 9 Robots Melted . | . . . . Combat Hostiles . | . . . . Parts Melted . | . . . . Heat Transferred 1345 | . . 296 1049 Parts Sabotaged . | . . . . Parts Stolen . | . . . . Parts Stripped . | . . . . Power Chain Reactions 1 | . . . 1 Alert | -11 -10 -9 -8 ------- Run | Yrd Mat Mat Mat Peak Influence 587 | . 65 275 587 Initial 115 | . . 27 115 Average 218 | . 25 163 320 Maximum Alert Level 2 | . . 1 2 Low Security (%) 42 | 100 100 62 11 Level 1 47 | . . 37 69 Level 2 10 | . . . 19 Level 3 . | . . . . Level 4 . | . . . . Level 5 . | . . . . High Security . | . . . . Max Security . | . . . . Squads Dispatched 4 | . . . 4 Investigation . | . . . . Extermination . | . . . . Reinforcement 4 | . . . 4 Assault . | . . . . Garrison . | . . . . Intercept . | . . . . Searches Triggered . | . . . . Construction Impeded 1 | . . . 1 Haulers Reinforced . | . . . . Active Scanning Responses . | . . . . Cargo Convoy Interrupts . | . . . . Stealth | -11 -10 -9 -8 --------- Run | Yrd Mat Mat Mat Distress Signals 3 | . . 1 2 Communications Jammed . | . . . . Distress Signals . | . . . . Times Spotted 50 | . 6 11 33 Peak Tracking Total 6 | . 3 3 6 Tactical Retreats 6 | . . . 6 Traps | -11 -10 -9 -8 ------- Run | Yrd Mat Mat Mat Traps Triggered 2 | . 1 1 . Indirectly . | . . . . Trap Hack Attempts . | . . . . Triggered . | . . . . Disarmed . | . . . . Reprogrammed . | . . . . Reused . | . . . . Traps Extracted . | . . . . Installed . | . . . . Triggered . | . . . . Machines | -11 -10 -9 -8 ---------- Run | Yrd Mat Mat Mat Machines Disabled 3 | . . . 3 Max in Single Turn 1 | . . . 1 Machines Repaired . | . . . . Machines Dismantled . | . . . . Machines Sabotaged . | . . . . Overloaded Fab Kills . | . . . . Hacking | -11 -10 -9 -8 --------- Run | Yrd Mat Mat Mat Machines Accessed 5 | . 3 2 . Terminals 3 | . 2 1 . Fabricators . | . . . . Repair Stations . | . . . . Recycling Units 1 | . 1 . . Scanalyzers 1 | . . 1 . Garrison Access . | . . . . Total Hacks 15 | . 8 7 . Successful 8 | . 5 3 . Failed 7 | . 3 4 . Catastrophic 2 | . 1 1 . Database Lockouts . | . . . . Manual 10 | . 6 4 . Terminals 9 | . 5 4 . Fabricators . | . . . . Repair Stations . | . . . . Recycling Units 3 | . 3 . . Scanalyzers 3 | . . 3 . Garrison Access . | . . . . Terminal Hacks 3 | . 2 1 . Robot Analysis 1 | . 1 . . Terminal Index 1 | . . 1 . Alert Level 1 | . 1 . . Fabricator Hacks . | . . . . Repair Station Hacks . | . . . . Recycling Unit Hacks 2 | . 2 . . Report Inventory 1 | . 1 . . Retrieve Components 1 | . 1 . . Scanalyzer 2 | . . 2 . Insert Component 1 | . . 1 . Analyze 1 | . . 1 . Garrison Access Hacks . | . . . . Unauthorized Hacks 1 | . 1 . . Terminals . | . . . . Fabricators . | . . . . Repair Stations . | . . . . Recycling Units 1 | . 1 . . Reject 1 | . 1 . . Scanalyzers . | . . . . Garrison Access . | . . . . Data Cores Recovered . | . . . . Used . | . . . . Hacking Detections 4 | . 2 2 . Full Trace Events . | . . . . Feedback Events . | . . . . Feedback Blocked . | . . . . Robot Schematics Acquired . | . . . . Robots Built . | . . . . Authchips . | . . . . Time . | . . . . Total Robot Build Rating . | . . . . Part Schematics Acquired 1 | . . 1 . Parts Built . | . . . . Authchips . | . . . . Time . | . . . . Total Part Build Rating . | . . . . Parts Repaired . | . . . . Time . | . . . . Parts Recycled . | . . . . Recycled Matter . | . . . . Retrieved Matter . | . . . . Retrieved Components 3 | . 3 . . Parts Scanalyzed 1 | . . 1 . Part Schematics Acquired 1 | . . 1 . Parts Damaged . | . . . . Bothacking | -11 -10 -9 -8 ------------ Run | Yrd Mat Mat Mat Used RIF Installer . | . . . . Robots Hacked . | . . . . Non-combat . | . . . . Combat . | . . . . Robot Hacks Applied . | . . . . Relay Couplers Released . | . . . . Fabnet Peak Effective % . | . . . . Robots Rewired . | . . . . Allies Hacked . | . . . . Hacks Repelled . | . . . . Allies | -11 -10 -9 -8 -------- Run | Yrd Mat Mat Mat Total Allies . | . . . . Largest Group . | . . . . Highest-Rated Group . | . . . . Highest-Rated Ally . | . . . . Total Orders . | . . . . Ally Attacks . | . . . . Total Damage . | . . . . Kills . | . . . . Allies Corrupted . | . . . . Allies Melted . | . . . . Intel | -11 -10 -9 -8 ------- Run | Yrd Mat Mat Mat Robot Analysis Total 1 | . 1 . . Derelict Logs Recovered . | . . . . Drone Launches . | . . . . Drone Recoveries . | . . . . Exploration | -11 -10 -9 -8 ------------- Run | Yrd Mat Mat Mat Turns Passed 1416 | 57 236 366 757 Spaces Moved 675 | 39 149 207 280 Core 7 | 7 . . . Treads 169 | . 2 . 167 Legs 499 | 32 147 207 113 Wheels . | . . . . Hover . | . . . . Flight . | . . . . Fastest Speed 50 | 50 120 120 112 Average Speed 128 | 107 120 120 141 Slowest Speed 330 | 120 160 120 330 Overloaded Moves . | . . . . Propulsion Burnouts . | . . . . Robots Hopped . | . . . . Cave-ins Triggered . | . . . . Exploration Rate (%) 19 | 3 28 23 25 Regions Visited 3 Branch Regions . Pre-discovered Areas . | . . . . Known Exits Taken . | . . . . Unknown Exits Taken 3 | 1 1 1 . Scrap Searched . | . . . . Spaces Dug . | . . . . Terrain Destroyed 111 | . . . 111 Melee . | . . . . Projectile . | . . . . AOE 111 | . . . 111 Terrain Rammed . | . . . . Walls Destroyed . | . . . . Machines Disabled . | . . . . Actions | -11 -10 -9 -8 --------- Run | Yrd Mat Mat Mat Total 1017 | 54 178 291 494 Wait 88 | . 6 43 39 Move 672 | 38 148 206 280 Hop . | . . . . Pick Up 42 | 12 3 7 20 Fast Attach 11 | . . 1 10 Attach 19 | 4 3 3 9 Detach . | . . . . Swap 26 | . 4 5 17 Drop 22 | . . 7 15 Fire 110 | . 14 19 77 Melee 27 | . . . 27 Ram . | . . . . Kick . | . . . . Crush . | . . . . Escape Stasis . | . . . . Rewire . | . . . . Trap . | . . . . Miscellaneous . | . . . . Route ------- -11/Scrapyard -10/Materials -9/Materials -8/Materials History --------- Turn | Location | Event 24 | -11/Scrapyard | Discovered new exit (range 15) 58 | -11/Scrapyard | Entered Materials 263 | -10/Materials | Discovered new exit (range 8) 294 | -10/Materials | Entered another Materials area 294 | -9/Materials | Evolved 2 slots: Propulsion x2 329 | -9/Materials | Build established: Mutant 644 | -9/Materials | Discovered new exit (range 13) 660 | -9/Materials | Entered another Materials area 660 | -8/Materials | Evolved 2 slots: Power x1, Utility x1 1039 | -8/Materials | Lost 5 parts (1p3n1u) 1323 | -8/Materials | Core integrity fell below 50% 1355 | -8/Materials | Core integrity fell below 20% 1387 | -8/Materials | Lost 11 parts (2p4n2u3w) 1417 | -8/Materials | Destroyed by G-47 Trooper with Particle Gun Last Messages --------------- System. 01377_ U-05 Engineer lays Concrete. 01377_ Acquired VSS Leg. 01378_ U-05 Engineer builds a Door. 01381_ K-01 Serf collects debris. 01382_ R-06 Scavenger collects Imp. Heat Sink. 01383_ U-05 Engineer lays Concrete. 01384_ The unstable cave ceiling collapses. 01384_ U-05 Engineer lays Concrete. 01385_ U-05 Engineer builds a Wall. 01385_ R-06 Scavenger collects Corrupted Particle Gun. 01385_ Acquired 75 matter. 01388_ The unstable cave ceiling collapses. 01389_ R-06 Scavenger collects Shotgun. 01401_ Acquired Adv. Visual Processing Unit. 01404_ Terminal disabled. 01404_ G-47 Trooper destroyed. 01410_ R-06 Scavenger collects Particle Cannon. 01415_ Critical hit (Burn: +37). Map ----- +----------------------------------------------------+ | ????????????????????????????? #### | | ????????????????????????????? | | ????????????????????????????? ! | | ????????????????????????????? !!= | | ?????????????????????????????? ### !!= ##### | | ?????????????????????????????????# !== ##### | | ???????????????????????????? ????# # = | | ???????????????????????????? ????# # " | | ???????????????????????????# ????# = # " | | ???????????????????????????+ ????# # " | | ?????????????????????????? # ????# "" # | | ?????????????????????????? # #???# """ / | | ?????????????????????????" # #???# """ ! # ### | | ?????????????????????????" # #???# #?? | | ????????????????????????? # #???# ### | | ???????????????????????## ##### * | | ???????????????????????# # # | | ???????????????????????# ! ]]= ] | | ???????????????????????# ] % ! | | ???????????????????????+ r # ! | | ???????????????????????# % ] ] | | ???????????????????????? ! ] [ % | | ????????????????????????# g | | ???????????????????????## ] # | | ???????????????????????# ###### # | | ???????????????????????# @ #?????## | | ???????????????????????# / #???????# | | ???????????????????????### ##????????## # | | ?????????????????????????# ##???????????##? ? | | ?????????????????????????########????????????????? | | ?????????????????????????????????????????????????? | | ?????????????????????????????????????????????????? | | ?????????????????????????????????????????????????? | | ?????????????????????????????????????????????????? | | ?????????????????????????????????????????????????? | | ?????????????????????????????????????????????????? | | ?????????????????????????????????????????????????? | | ?????????????????????????????????????????????????? | | | | | | | | | | | | | | | | | | | | | | | | | +----------------------------------------------------+ Best States ------------- Heat Dissipation 31 Energy Generation 23 Energy Capacity 560 Matter Stores 300 Matter Capacity 300 Sight Range 16 Terrain Scan Density 10 Armor Coverage 150 Evasion (%) 55 Recoil Reduction 4 Energy Filtering 30 Item Schematics ----------------- Hcp. Battery | -9/Materials | Scanalyzed Robot Schematics ------------------ None Fabricated ------------ Nothing Alien Tech Used ----------------- None Achievements -------------- None Challenges ------------ None Game ------ Seed DisruptionReflectiveChip Manual? 0 Play Time 00:28:14 Cumulative 22.7 hours Start 2024.03.22 @ 13:55:22 End 2024.03.22 @ 14:22:45 Sessions 1 Manual Loads 0 Difficulty Rogue Special Mode None Game No. 24 Rogue 24 Adventurer 0 Explorer 0 Win Type - Total 0 Types 0/0/0/0/0/0/0/0/0 Lore% 17 Gallery% 20 Achievement% 19 Wizard Run 0 Options --------- Layout 1 ASCII 0 Keyboard 0 Movement Mouse Keybinds 0 Fullscreen 1 Font 32/SmallcapsGlow Map View 50x40 Zoom Use 0% Tactical HUD 1 Map Filters NONE Filters NONE Steam 1 RUN: 1695f8e1-976d-44c5-9a6d-ac33573ee0ad